[Event "Live Chess"]
[Site "Chess.com"]
[Date "2023.05.21"]
[Round "-"]
[White "Dhaydon19"]
[Black "Larchikov"]
[Result "1-0"]
[WhiteElo "2690"]
[BlackElo "1972"]
[TimeControl "300"]
[EndTime "1:19:30 PDT"]
[Termination "Dhaydon19 won by resignation"]

1. d4 {[%clk 0:04:59.5]} 1... c6 {[%clk 0:04:57.8]} 2. c4 {[%clk 0:04:58.7]}
2... d5 {[%clk 0:04:56.3]} 3. cxd5 {[%clk 0:04:57.3]} 3... cxd5 {[%clk
0:04:56.2]} 4. Nc3 {[%clk 0:04:56.7]} 4... Nf6 {[%clk 0:04:55.2]} 5. Bf4 {[%clk
0:04:56.3]} 5... e6 {[%clk 0:04:53.1]} 6. e3 {[%clk 0:04:55.5]} 6... Bd6 {[%clk
0:04:52.3]} 7. Bd3 {[%clk 0:04:54]} 7... O-O {[%clk 0:04:50.2]} 8. Nge2 {[%clk
0:04:52.1]} 8... a6 {[%clk 0:04:47.4]} 9. O-O {[%clk 0:04:50.6]} 9... b5 {[%clk
0:04:46.5]} 10. Rc1 {[%clk 0:04:48.9]} 10... Bb7 {[%clk 0:04:43.1]} 11. Ng3
{[%clk 0:04:47.7]} 11... Bxf4 {[%clk 0:04:41.6]} 12. exf4 {[%clk 0:04:46.7]}
12... Qd6 {[%clk 0:04:39.5]} 13. f5 {[%clk 0:04:45.4]} 13... e5 {[%clk
0:04:35.8]} 14. dxe5 {[%clk 0:04:44.1]} 14... Qxe5 {[%clk 0:04:35.7]} 15. Re1
{[%clk 0:04:43]} 15... Qd6 {[%clk 0:04:33.7]} 16. Nce2 {[%clk 0:04:41.3]} 16...
Nbd7 {[%clk 0:04:31.1]} 17. Qd2 {[%clk 0:04:39.8]} 17... Ne5 {[%clk 0:04:26.8]}
18. Bb1 {[%clk 0:04:38.5]} 18... Rfd8 {[%clk 0:04:20.5]} 19. b3 {[%clk
0:04:37.1]} 19... Ne4 {[%clk 0:04:14.8]} 20. Qf4 {[%clk 0:04:35.7]} 20... Nxg3
{[%clk 0:03:58.4]} 21. Nxg3 {[%clk 0:04:34.3]} 21... Nc6 {[%clk 0:03:53.8]} 22.
Re8+ {[%clk 0:04:31.2]} 22... Rxe8 {[%clk 0:03:46.4]} 23. Qxd6 {[%clk
0:04:30.1]} 23... Rad8 {[%clk 0:03:44]} 24. Qc7 {[%clk 0:04:28.1]} 24... Re7
{[%clk 0:03:42.7]} 25. Rxc6 {[%clk 0:04:21.3]} 25... Rxc7 {[%clk 0:03:40.7]} 26.
Rxc7 {[%clk 0:04:19.9]} 1-0

[Event "Live Chess"]
[Site "Chess.com"]
[Date "2023.05.21"]
[Round "-"]
[White "wadsy27"]
[Black "Delacorta"]
[Result "1-0"]
[WhiteElo "2573"]
[BlackElo "1440"]
[TimeControl "300"]
[EndTime "1:19:31 PDT"]
[Termination "wadsy27 won by resignation"]

1. d4 {[%clk 0:04:57.4]} 1... e6 {[%clk 0:04:58.5]} 2. c4 {[%clk 0:04:56.3]}
2... f5 {[%clk 0:04:57.1]} 3. Nf3 {[%clk 0:04:54]} 3... Nf6 {[%clk 0:04:56.2]}
4. g3 {[%clk 0:04:53.9]} 4... c6 {[%clk 0:04:55]} 5. Bg2 {[%clk 0:04:53.8]} 5...
d5 {[%clk 0:04:54.1]} 6. Nc3 {[%clk 0:04:51.7]} 6... Be7 {[%clk 0:04:52.4]} 7.
O-O {[%clk 0:04:50]} 7... O-O {[%clk 0:04:51.2]} 8. Qc2 {[%clk 0:04:49.4]} 8...
Bd7 {[%clk 0:04:48.8]} 9. Bf4 {[%clk 0:04:48.4]} 9... Be8 {[%clk 0:04:46.6]} 10.
Ne5 {[%clk 0:04:45.7]} 10... Nbd7 {[%clk 0:04:43.6]} 11. Rad1 {[%clk 0:04:34.4]}
11... Nxe5 {[%clk 0:04:40.6]} 12. Bxe5 {[%clk 0:04:28.7]} 12... Bg6 {[%clk
0:04:37.4]} 13. Qb3 {[%clk 0:04:26.8]} 13... Qb6 {[%clk 0:04:31.6]} 14. c5
{[%clk 0:04:01.6]} 14... Qxb3 {[%clk 0:04:29.8]} 15. axb3 {[%clk 0:04:01.5]}
15... Nd7 {[%clk 0:04:16.6]} 16. f4 {[%clk 0:03:59.5]} 16... Nxe5 {[%clk
0:04:10.8]} 17. fxe5 {[%clk 0:03:57.8]} 17... Bg5 {[%clk 0:04:03.8]} 18. b4
{[%clk 0:03:48.4]} 18... f4 {[%clk 0:03:56.7]} 19. h4 {[%clk 0:03:39.9]} 19...
Bh6 {[%clk 0:03:43.8]} 20. g4 {[%clk 0:03:37]} 20... f3 {[%clk 0:03:27.5]} 21.
g5 {[%clk 0:03:24.6]} 21... fxg2 {[%clk 0:03:22.5]} 22. Kxg2 {[%clk 0:03:23.8]}
22... Bxg5 {[%clk 0:03:16.8]} 23. hxg5 {[%clk 0:03:22]} 23... Rxf1 {[%clk
0:03:12.9]} 24. Rxf1 {[%clk 0:03:20.9]} 24... Rf8 {[%clk 0:03:10.8]} 25. Rxf8+
{[%clk 0:03:15.6]} 25... Kxf8 {[%clk 0:03:09.5]} 26. b5 {[%clk 0:03:13.8]} 26...
Bc2 {[%clk 0:02:52.4]} 27. Kg3 {[%clk 0:02:55.8]} 27... h6 {[%clk 0:02:49.4]}
28. Kh4 {[%clk 0:02:49.6]} 28... hxg5+ {[%clk 0:02:45.7]} 29. Kxg5 {[%clk
0:02:48.2]} 29... Kf7 {[%clk 0:02:41.8]} 30. b4 {[%clk 0:02:46]} 30... g6 {[%clk
0:02:26.7]} 31. bxc6 {[%clk 0:02:43.3]} 31... bxc6 {[%clk 0:02:25.1]} 32. b5
{[%clk 0:02:43]} 32... cxb5 {[%clk 0:02:12.2]} 33. Nxb5 {[%clk 0:02:42.2]} 33...
Ba4 {[%clk 0:01:43.5]} 34. Nd6+ {[%clk 0:02:38.2]} 34... Kg7 {[%clk 0:01:25.2]}
35. Nb7 {[%clk 0:02:24]} 35... Bc6 {[%clk 0:01:15.1]} 36. Nd8 {[%clk 0:02:21.3]}
36... Bd7 {[%clk 0:01:08.7]} 37. c6 {[%clk 0:02:11.9]} 37... Bc8 {[%clk
0:01:07.7]} 38. Nb7 {[%clk 0:02:09]} 38... Kf7 {[%clk 0:00:54]} 39. Nd6+ {[%clk
0:02:07.2]} 1-0

[Event "Live Chess"]
[Site "Chess.com"]
[Date "2023.05.21"]
[Round "-"]
[White "Leonid_Starozhilov"]
[Black "blunderabit"]
[Result "1-0"]
[WhiteElo "2661"]
[BlackElo "1819"]
[TimeControl "300"]
[EndTime "1:19:43 PDT"]
[Termination "Leonid_Starozhilov won on time"]

1. e4 {[%clk 0:04:58.7]} 1... c5 {[%clk 0:04:57.8]} 2. Nf3 {[%clk 0:04:57]} 2...
d6 {[%clk 0:04:56.5]} 3. Bb5+ {[%clk 0:04:55.7]} 3... Bd7 {[%clk 0:04:49.9]} 4.
c4 {[%clk 0:04:53.3]} 4... a6 {[%clk 0:04:42.6]} 5. Bxd7+ {[%clk 0:04:51.4]}
5... Qxd7 {[%clk 0:04:41]} 6. Nc3 {[%clk 0:04:51.3]} 6... Nc6 {[%clk 0:04:38.2]}
7. d4 {[%clk 0:04:49.5]} 7... cxd4 {[%clk 0:04:36.4]} 8. Nxd4 {[%clk 0:04:49.4]}
8... Nf6 {[%clk 0:04:31]} 9. O-O {[%clk 0:04:46.1]} 9... g6 {[%clk 0:04:28.2]}
10. Nd5 {[%clk 0:04:40.6]} 10... Nxd5 {[%clk 0:04:08.5]} 11. exd5 {[%clk
0:04:37.7]} 11... Nxd4 {[%clk 0:03:50.9]} 12. Qxd4 {[%clk 0:04:35.2]} 12... Rg8
{[%clk 0:03:47.7]} 13. Re1 {[%clk 0:04:33.6]} 13... Bg7 {[%clk 0:03:44.5]} 14.
Qh4 {[%clk 0:04:32.6]} 14... h5 {[%clk 0:03:33]} 15. Bg5 {[%clk 0:04:28.2]}
15... e5 {[%clk 0:02:30]} 16. dxe6 {[%clk 0:04:24.2]} 16... fxe6 {[%clk
0:02:28.7]} 17. Rad1 {[%clk 0:04:21.1]} 17... Rc8 {[%clk 0:02:12.5]} 18. b3
{[%clk 0:04:15.5]} 18... Rc5 {[%clk 0:02:06.1]} 19. Bf4 {[%clk 0:04:06.8]} 19...
e5 {[%clk 0:01:32.2]} 20. Be3 {[%clk 0:03:50.3]} 20... Rc8 {[%clk 0:01:28.4]}
21. Qe4 {[%clk 0:03:46.7]} 21... Bf6 {[%clk 0:01:17.8]} 22. c5 {[%clk 0:03:43]}
22... Qc6 {[%clk 0:01:02.5]} 23. Qxc6+ {[%clk 0:03:37.4]} 23... Rxc6 {[%clk
0:01:01.1]} 24. Rxd6 {[%clk 0:03:34.7]} 24... Rxd6 {[%clk 0:00:56.6]} 25. cxd6
{[%clk 0:03:34.6]} 25... Kd7 {[%clk 0:00:55.2]} 26. Rc1 {[%clk 0:03:26]} 26...
Rc8 {[%clk 0:00:52.2]} 27. Rxc8 {[%clk 0:03:20.2]} 27... Kxc8 {[%clk 0:00:50.2]}
28. f3 {[%clk 0:03:18]} 28... Kd7 {[%clk 0:00:47.8]} 29. Bc5 {[%clk 0:03:16.3]}
29... b6 {[%clk 0:00:45.6]} 30. Bxb6 {[%clk 0:03:15]} 30... Kxd6 {[%clk
0:00:44.5]} 31. Kf2 {[%clk 0:03:13.9]} 31... Kc6 {[%clk 0:00:37.8]} 32. Be3
{[%clk 0:03:11.1]} 32... Kd5 {[%clk 0:00:34.2]} 33. Ke2 {[%clk 0:03:05.4]} 33...
e4 {[%clk 0:00:26.4]} 34. f4 {[%clk 0:03:03.6]} 34... Be7 {[%clk 0:00:13]} 35.
g3 {[%clk 0:02:57.8]} 35... Bb4 {[%clk 0:00:11]} 36. h3 {[%clk 0:02:56.5]} 36...
Ba5 {[%clk 0:00:01.4]} 37. g4 {[%clk 0:02:54.9]} 1-0

[Event "Live Chess"]
[Site "Chess.com"]
[Date "2023.05.21"]
[Round "-"]
[White "booktrunk"]
[Black "EPotapov05"]
[Result "0-1"]
[WhiteElo "1288"]
[BlackElo "1406"]
[TimeControl "300"]
[EndTime "1:19:48 PDT"]
[Termination "EPotapov05 won by checkmate"]

1. d4 {[%clk 0:04:59.1]} 1... d5 {[%clk 0:04:56.7]} 2. h3 {[%clk 0:04:56.9]}
2... Bf5 {[%clk 0:04:54.5]} 3. Nf3 {[%clk 0:04:55]} 3... e6 {[%clk 0:04:53.5]}
4. Nh4 {[%clk 0:04:52.6]} 4... Bg6 {[%clk 0:04:51]} 5. Nxg6 {[%clk 0:04:51.4]}
5... hxg6 {[%clk 0:04:50.3]} 6. Bf4 {[%clk 0:04:50.6]} 6... Nf6 {[%clk
0:04:49.3]} 7. Nc3 {[%clk 0:04:48.5]} 7... c6 {[%clk 0:04:48.3]} 8. Qd3 {[%clk
0:04:44.3]} 8... Bd6 {[%clk 0:04:46.9]} 9. Bxd6 {[%clk 0:04:42.8]} 9... Qxd6
{[%clk 0:04:46.1]} 10. e3 {[%clk 0:04:40]} 10... Nbd7 {[%clk 0:04:45.2]} 11.
O-O-O {[%clk 0:04:38]} 11... c5 {[%clk 0:04:44.2]} 12. dxc5 {[%clk 0:04:36.4]}
12... Nxc5 {[%clk 0:04:43.2]} 13. Qb5+ {[%clk 0:04:33.9]} 13... Qc6 {[%clk
0:04:41.1]} 14. Qxc6+ {[%clk 0:04:32.8]} 14... bxc6 {[%clk 0:04:41]} 15. b4
{[%clk 0:04:29.3]} 15... Nce4 {[%clk 0:04:39.5]} 16. Nxe4 {[%clk 0:04:28.2]}
16... Nxe4 {[%clk 0:04:39.4]} 17. Rg1 {[%clk 0:04:18.9]} 17... Nxf2 {[%clk
0:04:37.3]} 18. Rd2 {[%clk 0:04:17.8]} 18... Ne4 {[%clk 0:04:35.8]} 19. Rd4
{[%clk 0:04:17]} 19... Nc3 {[%clk 0:04:26]} 20. a3 {[%clk 0:04:12.2]} 20... a5
{[%clk 0:04:19.2]} 21. Kb2 {[%clk 0:04:11]} 21... Ne4 {[%clk 0:04:17.8]} 22.
bxa5 {[%clk 0:04:06.9]} 22... Rxa5 {[%clk 0:04:15.3]} 23. Rb4 {[%clk 0:04:03.7]}
23... O-O {[%clk 0:04:07.4]} 24. Rb7 {[%clk 0:03:59.9]} 24... Rfa8 {[%clk
0:04:03.8]} 25. Rb3 {[%clk 0:03:55.2]} 25... Nd2 {[%clk 0:03:58.1]} 26. Rd3
{[%clk 0:03:51.4]} 26... Ne4 {[%clk 0:03:49.1]} 27. g4 {[%clk 0:03:45.2]} 27...
c5 {[%clk 0:03:48]} 28. Bg2 {[%clk 0:03:42.6]} 28... Nd6 {[%clk 0:03:37]} 29. c4
{[%clk 0:03:37.7]} 29... Nxc4+ {[%clk 0:03:27.8]} 30. Kc2 {[%clk 0:03:28.1]}
30... Rxa3 {[%clk 0:03:18]} 31. Rxa3 {[%clk 0:03:25.7]} 31... Rxa3 {[%clk
0:03:17.9]} 32. e4 {[%clk 0:03:21.3]} 32... Ra2+ {[%clk 0:03:02.7]} 33. Kc3
{[%clk 0:03:17.7]} 33... Ne3 {[%clk 0:02:55.8]} 34. Bf3 {[%clk 0:03:10.9]} 34...
d4+ {[%clk 0:02:50.5]} 35. Kb3 {[%clk 0:03:08.4]} 35... Rf2 {[%clk 0:02:42]} 36.
Bd1 {[%clk 0:03:05.6]} 36... Rf1 {[%clk 0:02:32.2]} 37. Rxf1 {[%clk 0:03:01.4]}
37... Nxf1 {[%clk 0:02:32.1]} 38. Kc4 {[%clk 0:03:00.7]} 38... e5 {[%clk
0:02:26]} 39. Kxc5 {[%clk 0:02:59.4]} 39... Kf8 {[%clk 0:02:20.9]} 40. Kd5
{[%clk 0:02:58.5]} 40... Ne3+ {[%clk 0:02:19]} 41. Kxe5 {[%clk 0:02:53.9]} 41...
Nxd1 {[%clk 0:02:18]} 42. Kxd4 {[%clk 0:02:53.3]} 42... Nf2 {[%clk 0:02:16.3]}
43. Ke3 {[%clk 0:02:51.5]} 43... Nxh3 {[%clk 0:02:14.8]} 44. Kf3 {[%clk
0:02:51.2]} 44... Ng5+ {[%clk 0:02:12.4]} 45. Kf4 {[%clk 0:02:50.6]} 45... Ne6+
{[%clk 0:02:12]} 46. Kf3 {[%clk 0:02:48.9]} 46... g5 {[%clk 0:02:10.5]} 47. e5
{[%clk 0:02:46.7]} 47... Ke7 {[%clk 0:02:08.6]} 48. Ke4 {[%clk 0:02:46]} 48...
Nf4 {[%clk 0:02:05.4]} 49. Kf5 {[%clk 0:02:44.3]} 49... Ne6 {[%clk 0:02:01.1]}
50. Ke4 {[%clk 0:02:40.8]} 50... g6 {[%clk 0:02:00.1]} 51. Kd5 {[%clk
0:02:39.5]} 51... Nf4+ {[%clk 0:01:57.7]} 52. Ke4 {[%clk 0:02:38.9]} 52... Ke6
{[%clk 0:01:55.6]} 53. Kd4 {[%clk 0:02:36.3]} 53... Nh3 {[%clk 0:01:52.5]} 54.
Ke4 {[%clk 0:02:35.1]} 54... Nf2+ {[%clk 0:01:51.5]} 55. Kf3 {[%clk 0:02:34]}
55... Nd3 {[%clk 0:01:50.7]} 56. Ke4 {[%clk 0:02:33.1]} 56... Nxe5 {[%clk
0:01:50.6]} 57. Ke3 {[%clk 0:02:31.6]} 57... Nxg4+ {[%clk 0:01:49.5]} 58. Kf3
{[%clk 0:02:31]} 58... f5 {[%clk 0:01:48.4]} 59. Kg3 {[%clk 0:02:29.4]} 59...
Ke5 {[%clk 0:01:47.3]} 60. Kf3 {[%clk 0:02:28.6]} 60... Nf6 {[%clk 0:01:44.8]}
61. Kg3 {[%clk 0:02:27.9]} 61... f4+ {[%clk 0:01:42.9]} 62. Kf3 {[%clk
0:02:27.1]} 62... g4+ {[%clk 0:01:41.1]} 63. Kg2 {[%clk 0:02:25.5]} 63... g5
{[%clk 0:01:39.8]} 64. Kh1 {[%clk 0:02:24.7]} 64... Nd5 {[%clk 0:01:37.6]} 65.
Kg1 {[%clk 0:02:24]} 65... Ke4 {[%clk 0:01:36.8]} 66. Kf2 {[%clk 0:02:23.5]}
66... g3+ {[%clk 0:01:35]} 67. Kg2 {[%clk 0:02:22.9]} 67... Ne3+ {[%clk
0:01:31.3]} 68. Kg1 {[%clk 0:02:21.8]} 68... Ng4 {[%clk 0:01:29.5]} 69. Kh1
{[%clk 0:02:20.7]} 69... Nf2+ {[%clk 0:01:28.6]} 70. Kg2 {[%clk 0:02:19.5]}
70... Ke3 {[%clk 0:01:24.9]} 71. Kg1 {[%clk 0:02:18.6]} 71... f3 {[%clk
0:01:22.2]} 72. Kf1 {[%clk 0:02:15.2]} 72... Kf4 {[%clk 0:01:17.4]} 73. Kg1
{[%clk 0:02:14.3]} 73... Kg4 {[%clk 0:01:16.7]} 74. Kf1 {[%clk 0:02:13.5]} 74...
Kh3 {[%clk 0:01:16.2]} 75. Kg1 {[%clk 0:02:13]} 75... g4 {[%clk 0:01:13.6]} 76.
Kf1 {[%clk 0:02:11.6]} 76... Kh2 {[%clk 0:01:12.6]} 77. Ke1 {[%clk 0:02:10]}
77... g2 {[%clk 0:01:10.1]} 78. Kd2 {[%clk 0:02:09.9]} 78... g1=Q {[%clk
0:01:08.2]} 79. Ke3 {[%clk 0:02:09.5]} 79... g3 {[%clk 0:01:07.1]} 80. Kf4
{[%clk 0:02:08.7]} 80... g2 {[%clk 0:01:06.1]} 81. Kxf3 {[%clk 0:02:08.1]} 81...
Ng4 {[%clk 0:01:02.8]} 82. Kxg4 {[%clk 0:02:07.1]} 82... Qf1 {[%clk 0:01:01.5]}
83. Kh4 {[%clk 0:02:06.2]} 83... g1=Q {[%clk 0:00:58.7]} 84. Kh5 {[%clk
0:02:05.1]} 84... Qfg2 {[%clk 0:00:55.5]} 85. Kh4 {[%clk 0:02:04.1]} 85... Qg4#
{[%clk 0:00:54.2]} 0-1

[Event "Live Chess"]
[Site "Chess.com"]
[Date "2023.05.21"]
[Round "-"]
[White "chessfiction"]
[Black "CheckThis4"]
[Result "0-1"]
[WhiteElo "2342"]
[BlackElo "2494"]
[TimeControl "300"]
[EndTime "1:20:02 PDT"]
[Termination "CheckThis4 won by resignation"]

1. e4 {[%clk 0:04:59.9]} 1... d5 {[%clk 0:04:56]} 2. d4 {[%clk 0:04:57.8]} 2...
dxe4 {[%clk 0:04:51.8]} 3. f3 {[%clk 0:04:57.2]} 3... e5 {[%clk 0:04:49.1]} 4.
c3 {[%clk 0:04:54.6]} 4... exd4 {[%clk 0:04:45.1]} 5. cxd4 {[%clk 0:04:54.5]}
5... Nc6 {[%clk 0:04:30.2]} 6. Be3 {[%clk 0:04:51.5]} 6... Nf6 {[%clk
0:04:21.1]} 7. Nc3 {[%clk 0:04:51.4]} 7... Bb4 {[%clk 0:04:17.7]} 8. Bb5 {[%clk
0:04:46.4]} 8... Nd5 {[%clk 0:04:14.7]} 9. Qd2 {[%clk 0:04:42.2]} 9... O-O
{[%clk 0:03:59.2]} 10. fxe4 {[%clk 0:04:38.4]} 10... Nxe3 {[%clk 0:03:56.5]} 11.
Qxe3 {[%clk 0:04:36.8]} 11... Qxd4 {[%clk 0:03:48.7]} 12. Qxd4 {[%clk
0:04:34.2]} 12... Nxd4 {[%clk 0:03:48.6]} 13. Bd3 {[%clk 0:04:32]} 13... Be6
{[%clk 0:03:40.2]} 14. O-O-O {[%clk 0:04:30.9]} 14... Rfd8 {[%clk 0:03:38.5]}
15. Kb1 {[%clk 0:04:25]} 15... c5 {[%clk 0:03:37.3]} 16. Nf3 {[%clk 0:04:23.5]}
16... Nxf3 {[%clk 0:03:32.7]} 17. gxf3 {[%clk 0:04:23.4]} 17... c4 {[%clk
0:03:32.1]} 18. Bc2 {[%clk 0:04:22.2]} 18... Bxc3 {[%clk 0:03:22.9]} 19. bxc3
{[%clk 0:04:22.1]} 19... Kf8 {[%clk 0:03:20.7]} 20. f4 {[%clk 0:04:21.4]} 20...
f6 {[%clk 0:03:17]} 21. e5 {[%clk 0:04:19.6]} 21... fxe5 {[%clk 0:03:11.9]} 22.
fxe5 {[%clk 0:04:16.9]} 22... Rxd1+ {[%clk 0:03:09.1]} 23. Rxd1 {[%clk
0:04:14.7]} 23... Ke7 {[%clk 0:03:06]} 24. Bxh7 {[%clk 0:04:12.6]} 24... Rh8
{[%clk 0:03:04]} 25. Be4 {[%clk 0:04:11.5]} 25... Rxh2 {[%clk 0:02:57.1]} 26.
Rg1 {[%clk 0:04:08.7]} 26... Re2 {[%clk 0:02:47.9]} 27. Bxb7 {[%clk 0:04:05]}
27... g6 {[%clk 0:02:41]} 28. Kc1 {[%clk 0:03:53.3]} 28... Bf5 {[%clk 0:02:35]}
29. Bd5 {[%clk 0:03:46.4]} 29... Rxa2 {[%clk 0:02:33.3]} 30. Re1 {[%clk
0:03:44.7]} 30... Rc2+ {[%clk 0:02:29.4]} 31. Kd1 {[%clk 0:03:42.9]} 31... Rxc3
{[%clk 0:02:28]} 32. Ke2 {[%clk 0:03:36.9]} 32... Rc2+ {[%clk 0:02:13.5]} 33.
Ke3 {[%clk 0:03:35.6]} 33... Be6 {[%clk 0:01:41.8]} 34. Bxe6 {[%clk 0:03:29.2]}
34... Kxe6 {[%clk 0:01:40.5]} 35. Kd4 {[%clk 0:03:29.1]} 35... a5 {[%clk
0:01:25.4]} 36. Ra1 {[%clk 0:03:25.5]} 36... Rd2+ {[%clk 0:01:23.9]} 37. Ke4
{[%clk 0:03:24]} 37... Re2+ {[%clk 0:01:22.8]} 38. Kd4 {[%clk 0:03:22.8]} 38...
Rxe5 {[%clk 0:01:21.8]} 39. Kxc4 {[%clk 0:03:21.4]} 39... g5 {[%clk 0:01:20.7]}
40. Kd4 {[%clk 0:03:19.5]} 40... Rf5 {[%clk 0:01:17.4]} 41. Rb1 {[%clk
0:03:17.5]} 41... g4 {[%clk 0:01:14.3]} 42. Rb6+ {[%clk 0:03:15.6]} 42... Kf7
{[%clk 0:01:13.3]} 43. Ke4 {[%clk 0:03:14]} 43... Rc5 {[%clk 0:01:10.5]} 44. Kf4
{[%clk 0:03:10.6]} 44... Rc4+ {[%clk 0:01:09.5]} 45. Kg3 {[%clk 0:03:03.2]}
45... a4 {[%clk 0:01:07.6]} 46. Ra6 {[%clk 0:03:02.3]} 46... Ke7 {[%clk
0:01:06.4]} 47. Kf2 {[%clk 0:02:54.9]} 47... Kd7 {[%clk 0:01:05.4]} 48. Ke3
{[%clk 0:02:54.2]} 48... g3 {[%clk 0:00:56.7]} 49. Rg6 {[%clk 0:02:45.3]} 49...
Rc3+ {[%clk 0:00:50.9]} 50. Kd4 {[%clk 0:02:42.4]} 50... Rf3 {[%clk 0:00:48.1]}
51. Ke4 {[%clk 0:02:37.6]} 51... Rb3 {[%clk 0:00:46.4]} 52. Kd5 {[%clk
0:02:34.4]} 52... a3 {[%clk 0:00:44.8]} 53. Rg7+ {[%clk 0:02:33.8]} 53... Kc8
{[%clk 0:00:44]} 54. Kc6 {[%clk 0:02:27.4]} 54... Rc3+ {[%clk 0:00:42.8]} 55.
Kd6 {[%clk 0:02:24.2]} 55... a2 {[%clk 0:00:39.6]} 56. Rg8+ {[%clk 0:02:23.4]}
56... Kb7 {[%clk 0:00:38.7]} 57. Rg7+ {[%clk 0:02:23.3]} 57... Kb6 {[%clk
0:00:37.7]} 0-1

[Event "Live Chess"]
[Site "Chess.com"]
[Date "2023.05.21"]
[Round "-"]
[White "Rusty_Bridges"]
[Black "JohanKjeldahl"]
[Result "0-1"]
[WhiteElo "1524"]
[BlackElo "1904"]
[TimeControl "300"]
[EndTime "1:20:10 PDT"]
[Termination "JohanKjeldahl won by resignation"]

1. e4 {[%clk 0:04:57]} 1... c5 {[%clk 0:04:57.8]} 2. Be2 {[%clk 0:04:54.9]} 2...
e6 {[%clk 0:04:55.1]} 3. f4 {[%clk 0:04:52.6]} 3... Nc6 {[%clk 0:04:53.6]} 4.
Nf3 {[%clk 0:04:51.5]} 4... a6 {[%clk 0:04:52.8]} 5. d3 {[%clk 0:04:50.7]} 5...
b5 {[%clk 0:04:50.6]} 6. Be3 {[%clk 0:04:49.6]} 6... Bb7 {[%clk 0:04:49.2]} 7.
O-O {[%clk 0:04:48.6]} 7... Qc7 {[%clk 0:04:48.3]} 8. f5 {[%clk 0:04:46.9]} 8...
Nf6 {[%clk 0:04:45.5]} 9. fxe6 {[%clk 0:04:45.2]} 9... dxe6 {[%clk 0:04:43.7]}
10. Nbd2 {[%clk 0:04:42.6]} 10... Be7 {[%clk 0:04:39.4]} 11. Bg5 {[%clk
0:04:38.2]} 11... h6 {[%clk 0:04:37.7]} 12. Bh4 {[%clk 0:04:36.5]} 12... O-O
{[%clk 0:04:32.9]} 13. Bg3 {[%clk 0:04:33.2]} 13... Qb6 {[%clk 0:04:31.3]} 14.
Kh1 {[%clk 0:04:30.5]} 14... Rad8 {[%clk 0:04:28]} 15. Ne5 {[%clk 0:04:25.7]}
15... Nd4 {[%clk 0:04:24.1]} 16. c3 {[%clk 0:04:20]} 16... Nxe2 {[%clk 0:04:22]}
17. Qxe2 {[%clk 0:04:18.5]} 17... Nd7 {[%clk 0:04:13.9]} 18. Ndf3 {[%clk
0:04:12.2]} 18... Bf6 {[%clk 0:04:10.2]} 19. Rad1 {[%clk 0:03:51]} 19... Nxe5
{[%clk 0:03:58.7]} 20. Bxe5 {[%clk 0:03:46.1]} 20... Bxe5 {[%clk 0:03:57.1]} 21.
Nxe5 {[%clk 0:03:44.6]} 21... Qd6 {[%clk 0:03:53.8]} 22. d4 {[%clk 0:03:21.1]}
22... cxd4 {[%clk 0:03:49.5]} 23. cxd4 {[%clk 0:03:18.9]} 23... Qb4 {[%clk
0:03:40.4]} 24. Nf3 {[%clk 0:03:13.7]} 24... Rd7 {[%clk 0:03:32.3]} 25. a3
{[%clk 0:03:09.7]} 25... Qe7 {[%clk 0:03:29.5]} 26. Ne5 {[%clk 0:03:05.5]} 26...
Rc7 {[%clk 0:03:24.3]} 27. Rd2 {[%clk 0:02:54.8]} 27... Rfc8 {[%clk 0:03:21.8]}
28. Rfd1 {[%clk 0:02:52.4]} 28... f6 {[%clk 0:03:20.2]} 29. Ng6 {[%clk
0:02:46.5]} 29... Qf7 {[%clk 0:03:18.2]} 30. Qg4 {[%clk 0:02:41]} 30... Rc4
{[%clk 0:02:59.7]} 31. Rf1 {[%clk 0:02:17.6]} 31... Qe8 {[%clk 0:02:50.7]} 32.
Rdf2 {[%clk 0:01:20.1]} 32... Rc1 {[%clk 0:02:46]} 33. h3 {[%clk 0:00:49.8]}
33... Rxf1+ {[%clk 0:02:42.5]} 34. Rxf1 {[%clk 0:00:47.7]} 34... Rc2 {[%clk
0:02:38]} 35. b4 {[%clk 0:00:32.4]} 35... f5 {[%clk 0:02:32.9]} 36. Qd1 {[%clk
0:00:24.7]} 36... Bxe4 {[%clk 0:02:29.8]} 37. Ne5 {[%clk 0:00:20.4]} 37... Rxg2
{[%clk 0:02:25.1]} 0-1

[Event "Live Chess"]
[Site "Chess.com"]
[Date "2023.05.21"]
[Round "-"]
[White "Missedidea"]
[Black "Mugzwang"]
[Result "1-0"]
[WhiteElo "1839"]
[BlackElo "1551"]
[TimeControl "300"]
[EndTime "1:20:21 PDT"]
[Termination "Missedidea won by resignation"]

1. d4 {[%clk 0:04:58.8]} 1... d5 {[%clk 0:04:56.7]} 2. c4 {[%clk 0:04:57.5]}
2... e6 {[%clk 0:04:55.5]} 3. Nc3 {[%clk 0:04:56.2]} 3... Nf6 {[%clk 0:04:54.5]}
4. Bg5 {[%clk 0:04:53.6]} 4... h6 {[%clk 0:04:50.2]} 5. Bh4 {[%clk 0:04:51.6]}
5... Be7 {[%clk 0:04:49.3]} 6. e3 {[%clk 0:04:50.8]} 6... O-O {[%clk 0:04:47.8]}
7. Nf3 {[%clk 0:04:49.6]} 7... Nbd7 {[%clk 0:04:39.7]} 8. Rc1 {[%clk 0:04:47.2]}
8... Re8 {[%clk 0:04:38.5]} 9. Bd3 {[%clk 0:04:45]} 9... b6 {[%clk 0:04:29.7]}
10. O-O {[%clk 0:04:41.8]} 10... Bb7 {[%clk 0:04:26.4]} 11. cxd5 {[%clk
0:04:39.9]} 11... Nxd5 {[%clk 0:04:23.2]} 12. Bxe7 {[%clk 0:04:31.6]} 12... Qxe7
{[%clk 0:04:19.3]} 13. a3 {[%clk 0:04:24.6]} 13... Nxc3 {[%clk 0:04:15.2]} 14.
Rxc3 {[%clk 0:04:22.6]} 14... e5 {[%clk 0:04:14.9]} 15. Rxc7 {[%clk 0:04:16.9]}
15... Rab8 {[%clk 0:03:54]} 16. Nxe5 {[%clk 0:04:13.3]} 16... Qg5 {[%clk
0:03:39.4]} 17. Rxb7 {[%clk 0:04:01.3]} 17... Rxb7 {[%clk 0:03:34.5]} 18. f4
{[%clk 0:04:00.3]} 18... Qe7 {[%clk 0:03:15.3]} 19. Qf3 {[%clk 0:03:50.7]} 19...
Nxe5 {[%clk 0:03:12.3]} 20. fxe5 {[%clk 0:03:48.7]} 20... Qe6 {[%clk 0:02:41.9]}
21. Qxb7 {[%clk 0:03:45.6]} 1-0